[Event "Titled Tuesday Blitz September 27 Late 2022"]
[White "Bortnyk, Olexandr"]
[Black "Bacrot, Etienne"]
[WhiteFideId "14120828"]
[BlackFideId "605506"]
[WhiteElo "2723"]
[BlackElo "2666"]
[Result "1-0"]
[Round "05"]
[TimeControl "180+1"]
[Date "2022.09.27"]
[WhiteClock "0:00:19"]
[BlackClock "0:00:23"]

1. d4 {[%clk 0:03:00]}  d5 {[%clk 0:02:59]} 2. Nc3 {[%clk 0:03:01]}  c6 {[%clk 0:02:59]} 3. Bf4 {[%clk 0:03:00]}  Bf5 {[%clk 0:03:00]} 4. e3 {[%clk 0:03:01]}  e6 {[%clk 0:03:00]} 5. g4 {[%clk 0:03:01]}  Bg6 {[%clk 0:03:00]} 6. h4 {[%clk 0:03:00]}  h5 {[%clk 0:03:00]} 7. g5 {[%clk 0:02:58]}  Bb4 {[%clk 0:02:59]} 8. Bd3 {[%clk 0:02:57]}  Ne7 {[%clk 0:02:59]} 9. Ne2 {[%clk 0:02:57]}  Nd7 {[%clk 0:02:59]} 10. a3 {[%clk 0:02:56]}  Ba5 {[%clk 0:02:57]} 11. Bd6 {[%clk 0:02:55]}  Nf5 {[%clk 0:02:53]} 12. Bg3 {[%clk 0:02:35]}  Nxg3 {[%clk 0:02:50]} 13. fxg3 {[%clk 0:02:32]}  Bxd3 {[%clk 0:02:41]} 14. Qxd3 {[%clk 0:02:33]}  g6 {[%clk 0:02:39]} 15. O-O-O {[%clk 0:02:30]}  e5 {[%clk 0:02:37]} 16. e4 {[%clk 0:02:28]}  exd4 {[%clk 0:02:31]} 17. Qxd4 {[%clk 0:02:22]}  O-O {[%clk 0:02:30]} 18. exd5 {[%clk 0:02:21]}  c5 {[%clk 0:02:25]} 19. Qf4 {[%clk 0:02:19]}  Re8 {[%clk 0:02:21]} 20. d6 {[%clk 0:02:14]}  b5 {[%clk 0:02:15]} 21. Rhf1 {[%clk 0:02:13]}  Ne5 {[%clk 0:02:11]} 22. Nd5 {[%clk 0:02:07]}  Re6 {[%clk 0:02:10]} 23. Ne7+ {[%clk 0:01:46]}  Kh8 {[%clk 0:01:52]} 24. Rd5 {[%clk 0:01:42]}  Bc7 {[%clk 0:01:16]} 25. Rxe5 {[%clk 0:00:44]}  Bxd6 {[%clk 0:01:15]} 26. Qxf7 {[%clk 0:00:45]}  Rxe7 {[%clk 0:01:13]} 27. Rxe7 {[%clk 0:00:45]}  Qxe7 {[%clk 0:01:12]} 28. Qxg6 {[%clk 0:00:24]}  Qxe2 {[%clk 0:01:11]} 29. Qf6+ {[%clk 0:00:24]}  Kg8 {[%clk 0:01:09]} 30. Qf7+ {[%clk 0:00:25]}  Kh8 {[%clk 0:01:09]} 31. g6 {[%clk 0:00:25]}  Qe3+ {[%clk 0:00:43]} 32. Kb1 {[%clk 0:00:25]}  Qh6 {[%clk 0:00:43]} 33. Rf5 {[%clk 0:00:24]}  Rg8 {[%clk 0:00:26]} 34. Rxh5 {[%clk 0:00:17]}  Qxh5 {[%clk 0:00:24]} 35. g7+ {[%clk 0:00:18]}  Rxg7 {[%clk 0:00:23]} 36. Qxh5+ {[%clk 0:00:19]}  Kg8 {[%clk 0:00:23]} 37. Qd5+ {[%clk 0:00:19]}  Kh7 {[%clk 0:00:23]} 38. Qxd6 {[%clk 0:00:19]} 1-0


[Site "https://www.chess.com"]

[Event "Titled Tuesday Blitz September 27 Late 2022"]
[White "Daggupati, Balaji"]
[Black "Salman, Pavel"]
[WhiteFideId "2090759"]
[BlackFideId "24153753"]
[WhiteElo "2778"]
[BlackElo "2039"]
[Result "1-0"]
[Round "05"]
[TimeControl "180+1"]
[Date "2022.09.28"]
[WhiteClock "0:00:10"]
[BlackClock "0:00:05"]

1. e4 {[%clk 0:03:00]}  c5 {[%clk 0:02:59]} 2. Nf3 {[%clk 0:03:00]}  e6 {[%clk 0:03:00]} 3. d4 {[%clk 0:03:01]}  cxd4 {[%clk 0:03:00]} 4. Nxd4 {[%clk 0:03:02]}  a6 {[%clk 0:03:01]} 5. Be2 {[%clk 0:03:02]}  Qc7 {[%clk 0:03:00]} 6. O-O {[%clk 0:03:01]}  Nf6 {[%clk 0:03:01]} 7. Nc3 {[%clk 0:03:02]}  b5 {[%clk 0:02:59]} 8. Bf3 {[%clk 0:02:57]}  Bb7 {[%clk 0:02:29]} 9. e5 {[%clk 0:02:57]}  Ng8 {[%clk 0:02:20]} 10. Bxb7 {[%clk 0:02:42]}  Qxb7 {[%clk 0:02:21]} 11. Bg5 {[%clk 0:02:16]}  Nc6 {[%clk 0:02:16]} 12. Nxc6 {[%clk 0:02:16]}  Qxc6 {[%clk 0:02:15]} 13. Qd3 {[%clk 0:02:14]}  Be7 {[%clk 0:02:12]} 14. Qg3 {[%clk 0:02:03]}  Bxg5 {[%clk 0:02:07]} 15. Qxg5 {[%clk 0:02:04]}  Ne7 {[%clk 0:02:07]} 16. Rad1 {[%clk 0:01:56]}  Nf5 {[%clk 0:01:45]} 17. Rfe1 {[%clk 0:01:47]}  h6 {[%clk 0:01:42]} 18. Qd2 {[%clk 0:01:41]}  Rc8 {[%clk 0:01:16]} 19. Ne4 {[%clk 0:01:39]}  O-O {[%clk 0:01:16]} 20. c3 {[%clk 0:01:27]}  Rfd8 {[%clk 0:01:16]} 21. Qf4 {[%clk 0:01:23]}  Qc4 {[%clk 0:01:03]} 22. b3 {[%clk 0:01:23]}  Qc7 {[%clk 0:01:01]} 23. Rd3 {[%clk 0:00:55]}  b4 {[%clk 0:00:58]} 24. cxb4 {[%clk 0:00:53]}  Qc2 {[%clk 0:00:54]} 25. Rd2 {[%clk 0:00:53]}  Qc1 {[%clk 0:00:44]} 26. Kf1 {[%clk 0:00:51]}  Qc6 {[%clk 0:00:30]} 27. Ng3 {[%clk 0:00:43]}  Nxg3+ {[%clk 0:00:28]} 28. Qxg3 {[%clk 0:00:43]}  Qb5+ {[%clk 0:00:28]} 29. Qd3 {[%clk 0:00:37]}  Qxb4 {[%clk 0:00:27]} 30. h3 {[%clk 0:00:26]}  Rc6 {[%clk 0:00:27]} 31. Red1 {[%clk 0:00:23]}  Rdc8 {[%clk 0:00:24]} 32. Qxd7 {[%clk 0:00:23]}  Qb5+ {[%clk 0:00:24]} 33. Kg1 {[%clk 0:00:15]}  Qxe5 {[%clk 0:00:25]} 34. Qd3 {[%clk 0:00:13]}  a5 {[%clk 0:00:23]} 35. Re2 {[%clk 0:00:12]}  Qf6 {[%clk 0:00:23]} 36. Red2 {[%clk 0:00:10]}  Qe5 {[%clk 0:00:22]} 37. Qf3 {[%clk 0:00:10]}  Rc1 {[%clk 0:00:17]} 38. g3 {[%clk 0:00:08]}  Rxd1+ {[%clk 0:00:17]} 39. Rxd1 {[%clk 0:00:08]}  Qb2 {[%clk 0:00:17]} 40. Rd7 {[%clk 0:00:08]}  Qc1+ {[%clk 0:00:15]} 41. Kg2 {[%clk 0:00:07]}  Rf8 {[%clk 0:00:15]} 42. Ra7 {[%clk 0:00:06]}  Qc5 {[%clk 0:00:15]} 43. Qb7 {[%clk 0:00:05]}  Qf5 {[%clk 0:00:13]} 44. Qf3 {[%clk 0:00:04]}  Qc5 {[%clk 0:00:13]} 45. Rb7 {[%clk 0:00:05]}  Qc2 {[%clk 0:00:12]} 46. a4 {[%clk 0:00:05]}  Qc5 {[%clk 0:00:12]} 47. Rb5 {[%clk 0:00:05]}  Qa7 {[%clk 0:00:13]} 48. Qc3 {[%clk 0:00:06]}  Ra8 {[%clk 0:00:12]} 49. Qf3 {[%clk 0:00:06]}  Rf8 {[%clk 0:00:11]} 50. h4 {[%clk 0:00:06]}  g6 {[%clk 0:00:11]} 51. Qe4 {[%clk 0:00:06]}  Kh7 {[%clk 0:00:11]} 52. h5 {[%clk 0:00:07]}  Qa8 {[%clk 0:00:10]} 53. Qxa8 {[%clk 0:00:06]}  Rxa8 {[%clk 0:00:10]} 54. hxg6+ {[%clk 0:00:06]}  Kxg6 {[%clk 0:00:11]} 55. Kf3 {[%clk 0:00:07]}  f5 {[%clk 0:00:11]} 56. Kf4 {[%clk 0:00:07]}  Kf6 {[%clk 0:00:11]} 57. Rb6 {[%clk 0:00:07]}  h5 {[%clk 0:00:09]} 58. Ke3 {[%clk 0:00:07]}  Rc8 {[%clk 0:00:09]} 59. Kd3 {[%clk 0:00:07]}  Rd8+ {[%clk 0:00:09]} 60. Ke3 {[%clk 0:00:08]}  Rc8 {[%clk 0:00:09]} 61. Rb5 {[%clk 0:00:08]}  e5 {[%clk 0:00:09]} 62. Rxa5 {[%clk 0:00:08]}  Rc3+ {[%clk 0:00:09]} 63. Ke2 {[%clk 0:00:08]}  Rxb3 {[%clk 0:00:10]} 64. Ra6+ {[%clk 0:00:09]}  Kg5 {[%clk 0:00:10]} 65. Ra8 {[%clk 0:00:10]}  Ra3 {[%clk 0:00:11]} 66. Kf1 {[%clk 0:00:10]}  e4 {[%clk 0:00:10]} 67. Kg2 {[%clk 0:00:10]}  Kf6 {[%clk 0:00:09]} 68. Kh3 {[%clk 0:00:09]}  Ra2 {[%clk 0:00:09]} 69. a5 {[%clk 0:00:10]}  Rxf2 {[%clk 0:00:09]} 70. a6 {[%clk 0:00:10]}  Ra2 {[%clk 0:00:09]} 71. a7 {[%clk 0:00:11]}  Kg7 {[%clk 0:00:09]} 72. Kh4 {[%clk 0:00:07]}  e3 {[%clk 0:00:09]} 73. Kg5 {[%clk 0:00:07]}  e2 {[%clk 0:00:08]} 74. Re8 {[%clk 0:00:07]}  Rxa7 {[%clk 0:00:07]} 75. Rxe2 {[%clk 0:00:08]}  Ra3 {[%clk 0:00:08]} 76. Rg2 {[%clk 0:00:08]}  Ra5 {[%clk 0:00:08]} 77. Kxh5 {[%clk 0:00:08]}  Kf6 {[%clk 0:00:08]} 78. Kh4 {[%clk 0:00:08]}  Ra4+ {[%clk 0:00:08]} 79. Kh3 {[%clk 0:00:09]}  Kg5 {[%clk 0:00:09]} 80. Rc2 {[%clk 0:00:08]}  Ra3 {[%clk 0:00:09]} 81. Rc4 {[%clk 0:00:08]}  Rb3 {[%clk 0:00:09]} 82. Rc5 {[%clk 0:00:09]}  Ra3 {[%clk 0:00:09]} 83. Rc8 {[%clk 0:00:09]}  Rb3 {[%clk 0:00:10]} 84. Rg8+ {[%clk 0:00:10]}  Kf6 {[%clk 0:00:10]} 85. Kh4 {[%clk 0:00:10]}  Rb4+ {[%clk 0:00:10]} 86. Kh5 {[%clk 0:00:11]}  Rb1 {[%clk 0:00:10]} 87. Rg6+ {[%clk 0:00:11]}  Ke5 {[%clk 0:00:11]} 88. Ra6 {[%clk 0:00:10]}  Rb5 {[%clk 0:00:09]} 89. Kg5 {[%clk 0:00:10]}  Ke4 {[%clk 0:00:08]} 90. Ra4+ {[%clk 0:00:09]}  Ke5 {[%clk 0:00:08]} 91. Ra3 {[%clk 0:00:09]}  Ke4 {[%clk 0:00:08]} 92. Ra4+ {[%clk 0:00:10]}  Ke5 {[%clk 0:00:08]} 93. Rf4 {[%clk 0:00:10]}  Ke6 {[%clk 0:00:09]} 94. Kg6 {[%clk 0:00:10]}  Rc5 {[%clk 0:00:09]} 95. Rf1 {[%clk 0:00:10]}  Ra5 {[%clk 0:00:08]} 96. Re1+ {[%clk 0:00:11]}  Kd7 {[%clk 0:00:09]} 97. Kg5 {[%clk 0:00:10]}  Kd6 {[%clk 0:00:09]} 98. Kf4 {[%clk 0:00:10]}  Kd7 {[%clk 0:00:09]} 99. Re5 {[%clk 0:00:10]}  Ra3 {[%clk 0:00:09]} 100. Rxf5 {[%clk 0:00:10]}  Ke6 {[%clk 0:00:09]} 101. g4 {[%clk 0:00:11]}  Ke7 {[%clk 0:00:09]} 102. Kg5 {[%clk 0:00:11]}  Ra6 {[%clk 0:00:09]} 103. Kh5 {[%clk 0:00:10]}  Ke6 {[%clk 0:00:08]} 104. Rf1 {[%clk 0:00:09]}  Ra2 {[%clk 0:00:08]} 105. g5 {[%clk 0:00:09]}  Ke7 {[%clk 0:00:09]} 106. g6 {[%clk 0:00:09]}  Rh2+ {[%clk 0:00:08]} 107. Kg5 {[%clk 0:00:09]}  Ke8 {[%clk 0:00:08]} 108. g7 {[%clk 0:00:10]}  Ke7 {[%clk 0:00:08]} 109. Kg6 {[%clk 0:00:09]}  Rg2+ {[%clk 0:00:08]} 110. Kh7 {[%clk 0:00:09]}  Rh2+ {[%clk 0:00:09]} 111. Kg8 {[%clk 0:00:10]}  Rh3 {[%clk 0:00:09]} 112. Rf4 {[%clk 0:00:10]}  Ke6 {[%clk 0:00:07]} 113. Kf8 {[%clk 0:00:09]}  Ke5 {[%clk 0:00:04]} 114. Rf1 {[%clk 0:00:08]}  Rg3 {[%clk 0:00:05]} 115. g8=Q {[%clk 0:00:09]}  Rxg8+ {[%clk 0:00:05]} 116. Kxg8 {[%clk 0:00:10]} 1-0


[Site "https://www.chess.com"]

[Event "Titled Tuesday Blitz September 27 Late 2022"]
[White "Domingo Nunez, Ruben"]
[Black "Milikow, Yoav"]
[WhiteFideId "22245570"]
[BlackFideId "2822237"]
[WhiteElo "2406"]
[BlackElo "2341"]
[Result "1-0"]
[Round "05"]
[TimeControl "180+1"]
[Date "2022.09.27"]
[WhiteClock "0:00:09"]
[BlackClock "0:00:03"]

1. c4 {[%clk 0:02:58]}  e5 {[%clk 0:02:58]} 2. Nc3 {[%clk 0:02:58]}  Bb4 {[%clk 0:02:59]} 3. g3 {[%clk 0:02:58]}  Nf6 {[%clk 0:02:48]} 4. Bg2 {[%clk 0:02:58]}  O-O {[%clk 0:02:46]} 5. Nh3 {[%clk 0:02:45]}  c6 {[%clk 0:02:38]} 6. O-O {[%clk 0:02:36]}  d5 {[%clk 0:02:37]} 7. cxd5 {[%clk 0:02:36]}  cxd5 {[%clk 0:02:38]} 8. d4 {[%clk 0:02:36]}  exd4 {[%clk 0:02:24]} 9. Qxd4 {[%clk 0:02:21]}  Nc6 {[%clk 0:02:24]} 10. Qd3 {[%clk 0:02:21]}  Ne5 {[%clk 0:02:04]} 11. Qb5 {[%clk 0:02:20]}  Qd6 {[%clk 0:01:51]} 12. Bf4 {[%clk 0:02:00]}  a5 {[%clk 0:01:43]} 13. e3 {[%clk 0:00:55]}  Bd7 {[%clk 0:01:38]} 14. Qe2 {[%clk 0:00:55]}  Rfe8 {[%clk 0:01:25]} 15. Rfd1 {[%clk 0:00:54]}  Bc6 {[%clk 0:01:20]} 16. Rac1 {[%clk 0:00:51]}  Rad8 {[%clk 0:01:17]} 17. Nb5 {[%clk 0:00:47]}  Qd7 {[%clk 0:01:14]} 18. Nd4 {[%clk 0:00:47]}  h6 {[%clk 0:00:51]} 19. Bxe5 {[%clk 0:00:35]}  Rxe5 {[%clk 0:00:51]} 20. Nf4 {[%clk 0:00:36]}  Bd6 {[%clk 0:00:48]} 21. Nd3 {[%clk 0:00:36]}  Ree8 {[%clk 0:00:44]} 22. Nc5 {[%clk 0:00:36]}  Qe7 {[%clk 0:00:42]} 23. Nf5 {[%clk 0:00:32]}  Qf8 {[%clk 0:00:42]} 24. Nxd6 {[%clk 0:00:28]}  Rxd6 {[%clk 0:00:43]} 25. Qd2 {[%clk 0:00:27]}  b6 {[%clk 0:00:41]} 26. Nb3 {[%clk 0:00:25]}  Ba4 {[%clk 0:00:38]} 27. Rc3 {[%clk 0:00:24]}  Red8 {[%clk 0:00:35]} 28. Qd4 {[%clk 0:00:24]}  Bd7 {[%clk 0:00:32]} 29. Qf4 {[%clk 0:00:23]}  Bg4 {[%clk 0:00:29]} 30. Rdc1 {[%clk 0:00:23]}  g5 {[%clk 0:00:23]} 31. Qd4 {[%clk 0:00:23]}  Bf5 {[%clk 0:00:21]} 32. Qe5 {[%clk 0:00:21]}  Be4 {[%clk 0:00:20]} 33. Rc6 {[%clk 0:00:09]}  Bxg2 {[%clk 0:00:13]} 34. Kxg2 {[%clk 0:00:10]}  Ne4 {[%clk 0:00:11]} 35. Nd4 {[%clk 0:00:10]}  f6 {[%clk 0:00:07]} 36. Qf5 {[%clk 0:00:10]}  Qf7 {[%clk 0:00:07]} 37. Rc7 {[%clk 0:00:10]}  R6d7 {[%clk 0:00:06]} 38. Ne6 {[%clk 0:00:11]}  Re8 {[%clk 0:00:03]} 39. Rxd7 {[%clk 0:00:10]}  Qxd7 {[%clk 0:00:03]} 40. Rc7 {[%clk 0:00:09]} 1-0


[Site "https://www.chess.com"]

[Event "Titled Tuesday Blitz September 27 Late 2022"]
[White "Ekdyshman, Mikhail"]
[Black "Pace, Christopher"]
[WhiteFideId "4149416"]
[BlackFideId "2610167"]
[WhiteElo "2146"]
[BlackElo "2328"]
[Result "1-0"]
[Round "05"]
[TimeControl "180+1"]
[Date "2022.09.28"]
[WhiteClock "0:00:05"]
[BlackClock "0:00:10"]

1. e4 {[%clk 0:03:00]}  e5 {[%clk 0:02:58]} 2. Nf3 {[%clk 0:02:59]}  Nc6 {[%clk 0:02:57]} 3. Nc3 {[%clk 0:03:00]}  Nf6 {[%clk 0:02:58]} 4. d4 {[%clk 0:03:01]}  exd4 {[%clk 0:02:58]} 5. Nxd4 {[%clk 0:03:01]}  Bb4 {[%clk 0:02:53]} 6. Nxc6 {[%clk 0:03:01]}  bxc6 {[%clk 0:02:54]} 7. Bd3 {[%clk 0:02:59]}  d5 {[%clk 0:02:53]} 8. exd5 {[%clk 0:02:57]}  cxd5 {[%clk 0:02:54]} 9. O-O {[%clk 0:02:57]}  O-O {[%clk 0:02:54]} 10. h3 {[%clk 0:02:57]}  c6 {[%clk 0:02:54]} 11. Qf3 {[%clk 0:02:57]}  Be6 {[%clk 0:02:45]} 12. Bg5 {[%clk 0:02:56]}  Be7 {[%clk 0:02:39]} 13. Ne2 {[%clk 0:02:54]}  c5 {[%clk 0:02:33]} 14. Ng3 {[%clk 0:02:47]}  h6 {[%clk 0:02:25]} 15. Be3 {[%clk 0:02:42]}  d4 {[%clk 0:02:10]} 16. Bd2 {[%clk 0:02:40]}  c4 {[%clk 0:02:01]} 17. Bf5 {[%clk 0:02:38]}  Bd5 {[%clk 0:02:01]} 18. Qf4 {[%clk 0:02:34]}  Qb6 {[%clk 0:01:56]} 19. Rfe1 {[%clk 0:02:20]}  Bd6 {[%clk 0:01:23]} 20. Qh4 {[%clk 0:02:19]}  Rab8 {[%clk 0:00:25]} 21. Bxh6 {[%clk 0:02:10]}  gxh6 {[%clk 0:00:26]} 22. Qxf6 {[%clk 0:02:08]}  Bxg3 {[%clk 0:00:26]} 23. Qxb6 {[%clk 0:02:03]}  Bxf2+ {[%clk 0:00:26]} 24. Kxf2 {[%clk 0:02:03]}  Rxb6 {[%clk 0:00:27]} 25. Re5 {[%clk 0:02:00]}  Rd8 {[%clk 0:00:24]} 26. b3 {[%clk 0:01:57]}  d3 {[%clk 0:00:19]} 27. cxd3 {[%clk 0:01:52]}  cxb3 {[%clk 0:00:18]} 28. axb3 {[%clk 0:01:50]}  Rxb3 {[%clk 0:00:14]} 29. g4 {[%clk 0:01:44]}  Rb2+ {[%clk 0:00:15]} 30. Ke3 {[%clk 0:01:44]}  Rh2 {[%clk 0:00:14]} 31. g5 {[%clk 0:01:26]}  hxg5 {[%clk 0:00:13]} 32. Rxa7 {[%clk 0:01:25]}  Rh1 {[%clk 0:00:06]} 33. Kf2 {[%clk 0:01:17]}  Rh2+ {[%clk 0:00:05]} 34. Ke3 {[%clk 0:01:16]}  Rh1 {[%clk 0:00:05]} 35. Bd7 {[%clk 0:01:08]}  Re1+ {[%clk 0:00:05]} 36. Kd4 {[%clk 0:01:08]}  Rxe5 {[%clk 0:00:05]} 37. Kxe5 {[%clk 0:01:09]}  Be6 {[%clk 0:00:05]} 38. Bxe6 {[%clk 0:00:50]}  fxe6 {[%clk 0:00:06]} 39. d4 {[%clk 0:00:26]}  Rd5+ {[%clk 0:00:06]} 40. Kf6 {[%clk 0:00:25]}  Rxd4 {[%clk 0:00:06]} 41. Rg7+ {[%clk 0:00:23]}  Kh8 {[%clk 0:00:05]} 42. Rxg5 {[%clk 0:00:22]}  Rh4 {[%clk 0:00:06]} 43. Rg3 {[%clk 0:00:18]}  Rh6+ {[%clk 0:00:06]} 44. Kf7 {[%clk 0:00:19]}  Kh7 {[%clk 0:00:05]} 45. Rg7+ {[%clk 0:00:15]}  Kh8 {[%clk 0:00:05]} 46. Rg3 {[%clk 0:00:15]}  Kh7 {[%clk 0:00:06]} 47. Rf3 {[%clk 0:00:13]}  Kh8 {[%clk 0:00:06]} 48. Re3 {[%clk 0:00:11]}  Kh7 {[%clk 0:00:07]} 49. Rg3 {[%clk 0:00:12]}  Kh8 {[%clk 0:00:07]} 50. Ke7 {[%clk 0:00:11]}  Kh7 {[%clk 0:00:07]} 51. Kf8 {[%clk 0:00:11]}  Kh8 {[%clk 0:00:08]} 52. Ke7 {[%clk 0:00:08]}  Kh7 {[%clk 0:00:08]} 53. Kd6 {[%clk 0:00:08]}  Kh8 {[%clk 0:00:08]} 54. Ke5 {[%clk 0:00:09]}  Kh7 {[%clk 0:00:09]} 55. Rc3 {[%clk 0:00:07]}  Kg6 {[%clk 0:00:07]} 56. Kxe6 {[%clk 0:00:07]}  Kg5+ {[%clk 0:00:07]} 57. Ke5 {[%clk 0:00:07]}  Kh4 {[%clk 0:00:08]} 58. Kf5 {[%clk 0:00:06]}  Rh5+ {[%clk 0:00:09]} 59. Kf4 {[%clk 0:00:06]}  Ra5 {[%clk 0:00:09]} 60. Re3 {[%clk 0:00:04]}  Ra1 {[%clk 0:00:09]} 61. Ke4 {[%clk 0:00:04]}  Rh1 {[%clk 0:00:09]} 62. Kf4 {[%clk 0:00:04]}  Rxh3 {[%clk 0:00:10]} 63. Re7 {[%clk 0:00:05]} 1-0


[Site "https://www.chess.com"]

[Event "Titled Tuesday Blitz September 27 Late 2022"]
[White "Fawzy, Adham"]
[Black "Bluebaum, Matthias"]
[WhiteFideId "10613129"]
[BlackFideId "24651516"]
[WhiteElo "2541"]
[BlackElo "2633"]
[Result "0-1"]
[Round "05"]
[TimeControl "180+1"]
[Date "2022.09.27"]
[WhiteClock "0:00:22"]
[BlackClock "0:01:13"]

1. e4 {[%clk 0:03:00]}  e6 {[%clk 0:02:55]} 2. d4 {[%clk 0:03:01]}  d5 {[%clk 0:02:56]} 3. Nc3 {[%clk 0:03:01]}  Nf6 {[%clk 0:02:55]} 4. exd5 {[%clk 0:03:00]}  exd5 {[%clk 0:02:55]} 5. Bd3 {[%clk 0:03:00]}  c5 {[%clk 0:02:54]} 6. dxc5 {[%clk 0:03:00]}  Bxc5 {[%clk 0:02:55]} 7. Nf3 {[%clk 0:02:54]}  O-O {[%clk 0:02:54]} 8. O-O {[%clk 0:02:53]}  h6 {[%clk 0:02:54]} 9. Bf4 {[%clk 0:02:52]}  Nc6 {[%clk 0:02:55]} 10. h3 {[%clk 0:02:52]}  Be6 {[%clk 0:02:55]} 11. Ne5 {[%clk 0:02:43]}  Bd6 {[%clk 0:02:53]} 12. Re1 {[%clk 0:02:32]}  Re8 {[%clk 0:02:32]} 13. Qf3 {[%clk 0:02:10]}  Qb8 {[%clk 0:02:22]} 14. Nxc6 {[%clk 0:02:01]}  bxc6 {[%clk 0:02:23]} 15. Bxh6 {[%clk 0:02:02]}  Qxb2 {[%clk 0:01:54]} 16. Rab1 {[%clk 0:01:52]}  Qa3 {[%clk 0:01:53]} 17. Bg5 {[%clk 0:01:26]}  Nd7 {[%clk 0:01:50]} 18. Qh5 {[%clk 0:01:16]}  Nf8 {[%clk 0:01:48]} 19. Bd2 {[%clk 0:01:08]}  Rab8 {[%clk 0:01:41]} 20. Rb3 {[%clk 0:01:05]}  Rxb3 {[%clk 0:01:39]} 21. axb3 {[%clk 0:01:06]}  Bb4 {[%clk 0:01:23]} 22. Qg5 {[%clk 0:00:42]}  Qa5 {[%clk 0:01:14]} 23. Ne4 {[%clk 0:00:27]}  dxe4 {[%clk 0:01:13]} 24. Qxa5 {[%clk 0:00:27]}  Bxa5 {[%clk 0:01:14]} 25. Bxa5 {[%clk 0:00:22]}  exd3 {[%clk 0:01:14]} 26. c4 {[%clk 0:00:22]}  Rb8 {[%clk 0:01:13]} 0-1


[Site "https://www.chess.com"]

[Event "Titled Tuesday Blitz September 27 Late 2022"]
[White "Gascon Del Nogal, Jose Rafael"]
[Black "Richter, Paul"]
[WhiteFideId "3902463"]
[BlackFideId "2046350"]
[WhiteElo "2473"]
[BlackElo "2526"]
[Result "0-1"]
[Round "05"]
[TimeControl "180+1"]
[Date "2022.09.28"]
[WhiteClock "0:00:03"]
[BlackClock "0:00:04"]

1. Nf3 {[%clk 0:03:00]}  Nf6 {[%clk 0:02:58]} 2. c4 {[%clk 0:03:00]}  g6 {[%clk 0:02:58]} 3. Nc3 {[%clk 0:03:01]}  Bg7 {[%clk 0:02:58]} 4. e4 {[%clk 0:03:01]}  d6 {[%clk 0:02:58]} 5. d4 {[%clk 0:03:01]}  O-O {[%clk 0:02:58]} 6. Be3 {[%clk 0:03:01]}  Na6 {[%clk 0:02:55]} 7. Qc2 {[%clk 0:03:00]}  e5 {[%clk 0:02:54]} 8. dxe5 {[%clk 0:03:00]}  dxe5 {[%clk 0:02:55]} 9. Rd1 {[%clk 0:03:01]}  Qe8 {[%clk 0:02:49]} 10. a3 {[%clk 0:02:59]}  c6 {[%clk 0:02:47]} 11. b4 {[%clk 0:02:50]}  Ng4 {[%clk 0:02:33]} 12. Bg5 {[%clk 0:02:46]}  f6 {[%clk 0:02:10]} 13. Bc1 {[%clk 0:02:43]}  Nc7 {[%clk 0:01:56]} 14. h3 {[%clk 0:02:39]}  Nh6 {[%clk 0:01:55]} 15. c5 {[%clk 0:02:27]}  a6 {[%clk 0:01:34]} 16. Be2 {[%clk 0:02:12]}  Nf7 {[%clk 0:01:23]} 17. O-O {[%clk 0:02:08]}  Nb5 {[%clk 0:01:16]} 18. Na4 {[%clk 0:02:03]}  Be6 {[%clk 0:01:15]} 19. Nb6 {[%clk 0:01:57]}  Rd8 {[%clk 0:01:14]} 20. Bb2 {[%clk 0:01:53]}  Qe7 {[%clk 0:01:09]} 21. a4 {[%clk 0:01:52]}  Nc7 {[%clk 0:01:09]} 22. Nd2 {[%clk 0:01:38]}  Na8 {[%clk 0:00:51]} 23. Nbc4 {[%clk 0:01:32]}  Nc7 {[%clk 0:00:49]} 24. Nb3 {[%clk 0:01:29]}  Rxd1 {[%clk 0:00:40]} 25. Rxd1 {[%clk 0:01:27]}  Rd8 {[%clk 0:00:41]} 26. Nba5 {[%clk 0:01:28]}  Rxd1+ {[%clk 0:00:32]} 27. Qxd1 {[%clk 0:01:29]}  Nd8 {[%clk 0:00:24]} 28. Nd6 {[%clk 0:01:24]}  Ne8 {[%clk 0:00:22]} 29. Ndc4 {[%clk 0:00:49]}  Bf8 {[%clk 0:00:17]} 30. h4 {[%clk 0:00:45]}  Qd7 {[%clk 0:00:14]} 31. Qc2 {[%clk 0:00:45]}  h5 {[%clk 0:00:12]} 32. g3 {[%clk 0:00:40]}  Be7 {[%clk 0:00:12]} 33. Kg2 {[%clk 0:00:39]}  Nf7 {[%clk 0:00:12]} 34. Nb6 {[%clk 0:00:37]}  Qc7 {[%clk 0:00:11]} 35. Bc1 {[%clk 0:00:35]}  Bd8 {[%clk 0:00:10]} 36. Be3 {[%clk 0:00:35]}  Qe7 {[%clk 0:00:10]} 37. Nac4 {[%clk 0:00:24]}  Qc7 {[%clk 0:00:10]} 38. a5 {[%clk 0:00:20]}  Be7 {[%clk 0:00:10]} 39. f4 {[%clk 0:00:20]}  exf4 {[%clk 0:00:09]} 40. gxf4 {[%clk 0:00:21]}  f5 {[%clk 0:00:08]} 41. exf5 {[%clk 0:00:19]}  Bxf5 {[%clk 0:00:09]} 42. Bd3 {[%clk 0:00:20]}  Ng7 {[%clk 0:00:08]} 43. Kg3 {[%clk 0:00:18]}  Bxd3 {[%clk 0:00:07]} 44. Qxd3 {[%clk 0:00:18]}  Nf5+ {[%clk 0:00:08]} 45. Kh3 {[%clk 0:00:18]}  Nxh4 {[%clk 0:00:06]} 46. Nd7 {[%clk 0:00:15]}  Nf5 {[%clk 0:00:04]} 47. Nce5 {[%clk 0:00:15]}  Nxe5 {[%clk 0:00:04]} 48. Nxe5 {[%clk 0:00:16]}  Kh7 {[%clk 0:00:03]} 49. Qc4 {[%clk 0:00:13]}  Bf6 {[%clk 0:00:03]} 50. Bd4 {[%clk 0:00:13]}  Bxe5 {[%clk 0:00:02]} 51. Bxe5 {[%clk 0:00:12]}  Qe7 {[%clk 0:00:03]} 52. Kg2 {[%clk 0:00:11]}  Qd7 {[%clk 0:00:03]} 53. Qe2 {[%clk 0:00:10]}  Qd5+ {[%clk 0:00:03]} 54. Kf2 {[%clk 0:00:10]}  h4 {[%clk 0:00:03]} 55. Qg4 {[%clk 0:00:07]}  Qa2+ {[%clk 0:00:03]} 56. Kf3 {[%clk 0:00:06]}  Qb3+ {[%clk 0:00:03]} 57. Ke2 {[%clk 0:00:05]}  Qc2+ {[%clk 0:00:02]} 58. Ke1 {[%clk 0:00:05]}  Qc1+ {[%clk 0:00:02]} 59. Qd1 {[%clk 0:00:05]}  Qxd1+ {[%clk 0:00:02]} 60. Kxd1 {[%clk 0:00:06]}  h3 {[%clk 0:00:03]} 61. b5 {[%clk 0:00:03]}  h2 {[%clk 0:00:04]} 0-1


[Site "https://www.chess.com"]